bitfinex/quotes_ETHUSD_20240907
["timestamp","ask_amount","ask_price","bid_price","bid_amount"]
[1725670609812,0.13248752,2241.6,2241.3,3.12307]
[1725670609968,3.12249,2241.8,2241.2,3.21253781]
[1725670609969,3.12263,2241.7,2241.2,3.21253781]
[1725670610168,0.13248752,2241.5,2241.2,3.12331]
[1725670610371,3.8271991,2241.7,2241.2,3.12331]
[1725670610571,0.13248752,2241.4,2241.2,3.12331]
[1725670610801,3.8271991,2241.7,2241.2,3.12331]
[1725670610997,0.13248752,2241.3,2241.1,6.24677]
[1725670611179,3.12277,2241.6,2241.1,6.24677]
[1725670611382,0.13248752,2241.2,2241.1,3.12338]
[1725670611616,3.12277,2241.6,2241.1,3.12338]
[1725670612093,0.13248752,2241.5,2241.1,3.12338]
[1725670613763,3.25539752,2241.5,2241.0,3.12353]
[1725670614122,3.25539752,2241.5,2241.0,3.07353]
[1725670614459,3.25539752,2241.5,2241.0,6.19706]
[1725670614663,0.13248752,2241.5,2241.0,6.19706]
[1725670614814,3.12277,2241.6,2241.0,3.07353]
[1725670615019,0.13248752,2241.4,2241.0,3.07353]
[1725670615229,3.70570391,2241.5,2241.0,3.07353]
[1725670615436,0.13248752,2241.3,2241.0,3.07353]
[1725670615630,3.12277,2241.6,2241.0,3.07353]
[1725670615919,3.58900911,2242.1,2241.4,3.12292]
[1725670615920,5.12228,2242.0,2241.4,3.12292]
[1725670616144,5.12228,2242.0,2241.5,3.1229]
[1725670616456,8.24456,2242.0,2241.5,3.1229]
[1725670616618,8.24456,2242.0,2241.4,3.12304]
[1725670616619,3.12238,2241.9,2241.4,3.12304]
[1725670616819,0.87115091,2241.9,2241.5,3.1229]
[1725670617062,0.46684911,2242.1,2241.3,3.12313]
[1725670617063,0.46684911,2242.1,2241.8,3.12243]
[1725670617466,0.46684911,2242.1,2241.7,3.1225]
[1725670617692,0.46684911,2242.1,2241.5,3.12279]
[1725670617693,2.0,2242.0,2241.5,3.12279]
[1725670618077,3.12241,2241.9,2241.4,3.12298]
[1725670618395,5.12221,2242.0,2241.5,3.1229]
[1725670618600,3.99347991,2241.9,2241.4,3.12298]
[1725670618896,3.12236,2241.9,2241.4,3.12297]
[1725670619462,3.12236,2241.9,2241.5,3.12289]
[1725670619769,5.12221,2242.0,2241.5,3.12289]
[1725670619973,8.24455,2242.0,2241.5,3.12289]
[1725670620604,8.24455,2242.0,2241.5,3.12279]
[1725670620605,5.12221,2242.0,2241.5,3.12279]
[1725670620810,2.0,2242.0,2241.6,3.12268]
[1725670620965,5.12222,2242.0,2241.6,3.12268]
[1725670621158,3.12245,2241.9,2241.4,3.12302]
[1725670621362,3.12251,2241.8,2241.3,6.24629]
[1725670621574,3.12245,2241.9,2241.4,3.12303]
[1725670621796,3.12245,2241.9,2241.4,3.21224766]
[1725670622004,3.12242,2241.9,2241.4,3.21224766]
[1725670622384,6.24488,2241.9,2241.4,3.12303]
[1725670622590,7.11605291,2241.9,2241.4,3.12303]
[1725670623585,3.12257,2241.8,2241.3,6.24623]
[1725670623963,5.12223,2242.0,2241.5,3.12282]
[1725670624368,5.12223,2242.0,2241.6,3.12276]
[1725670624775,2.0,2242.0,2241.6,5.61967433]
[1725670625310,2.0,2242.0,2241.6,5.53046]
[1725670625510,0.46684911,2242.1,2241.9,3.12228]
[1725670625801,0.1331628,2242.0,2241.6,28.32306]
[1725670626023,3.58891911,2242.1,2241.6,28.32306]
[1725670626369,0.1331628,2242.0,2241.6,28.32306]
[1725670626560,3.58891911,2242.1,2241.6,28.32306]
[1725670626767,3.58891911,2242.1,2241.7,3.12262]
[1725670627206,3.58891911,2242.1,2241.6,25.20037]
[1725670627562,6.71106911,2242.1,2241.6,25.20037]
[1725670627812,3.12222,2242.0,2241.6,22.79267]
[1725670627972,3.2553828,2242.0,2241.6,22.79267]
[1725670628168,3.12222,2242.0,2241.6,19.67]
[1725670628514,3.2555828,2241.9,2241.6,19.67]
[1725670629122,3.2555828,2241.9,2241.4,5.59235]
[1725670629988,3.2555828,2241.9,2241.4,8.71533]
[1725670630190,3.2555828,2241.9,2241.4,5.59235]
[1725670630399,3.2555828,2241.9,2241.4,8.71532]
[1725670630601,3.2555828,2241.9,2241.4,5.59235]
[1725670631581,3.1225,2241.8,2241.3,3.12317]
[1725670631992,3.1225,2241.8,2241.2,25.2626]
[1725670631993,3.12269,2241.7,2241.2,25.2626]
[1725670632195,3.25580277,2241.7,2241.3,1.55454366]
[1725670632489,3.12277,2241.6,2241.2,20.59760224]
[1725670632689,3.12291,2241.5,2241.2,19.67]
[1725670632876,0.83785728,2241.6,2241.2,19.67]
[1725670633078,0.13311277,2241.4,2241.2,19.67]
[1725670633424,0.13311277,2241.3,2241.2,3.12332]
[1725670633722,0.13311277,2241.3,2241.2,4.67797819]
[1725670633916,5.1227,2241.7,2241.3,3.12316]
[1725670635422,2.0,2241.7,2241.3,3.12316]
[1725670635583,2.0,2241.7,2241.4,1.55455382]
[1725670635779,2.0,2241.7,2241.3,5.59256]
[1725670635982,6.71182799,2241.9,2241.4,7.00931821]
[1725670636288,8.24379,2242.3,2241.8,3.12248]
[1725670636536,5.58875991,2242.3,2241.8,3.21168447]
[1725670637923,8.71064991,2242.3,2241.8,3.21168447]
[1725670638093,5.58875991,2242.3,2241.9,3.12233]
[1725670638478,5.58875991,2242.3,2241.8,3.21168447]
[1725670638479,5.58872991,2242.3,2241.8,3.21167447]
[1725670638681,8.71064991,2242.3,2241.8,3.21167447]
[1725670638876,8.71057991,2242.3,2241.8,3.21162447]
[1725670639323,5.58871991,2242.3,2241.8,3.21162447]
[1725670639559,3.12202,2242.2,2241.9,1.55432463]
[1725670639699,3.12202,2242.2,2241.7,26.18961224]
[1725670639897,3.12202,2242.2,2241.8,7.00830068]
[1725670640152,3.12202,2242.2,2241.9,1.55434515]
[1725670640454,3.12202,2242.2,2241.8,3.12248]
[1725670640615,3.12202,2242.2,2241.9,1.55435992]
[1725670640812,3.12202,2242.2,2241.8,3.12248]
[1725670641013,5.12229,2242.0,2241.7,20.59760224]
[1725670641329,3.12235,2241.9,2241.7,19.67]
[1725670641528,3.25118202,2241.9,2241.7,19.67]
[1725670641743,3.12235,2241.9,2241.7,19.67]
[1725670642044,3.12249,2241.8,2241.7,19.67]
[1725670642226,3.12274,2241.7,2241.5,0.92760224]
[1725670642430,6.24544,2241.7,2241.3,0.92760224]
[1725670642743,6.24544,2241.7,2241.4,3.88678058]
[1725670642901,6.24544,2241.7,2241.3,0.92760224]
[1725670643101,3.1227,2241.7,2241.4,3.8867833]
[1725670643301,3.1227,2241.7,2241.5,3.88671355]
[1725670643635,3.1227,2241.7,2241.4,0.92760224]
[1725670643832,3.1227,2241.7,2241.5,3.88660921]
[1725670644032,3.1227,2241.7,2241.4,0.92760224]
[1725670644352,3.1227,2241.7,2241.3,4.50240552]
[1725670644353,6.24541,2241.7,2241.5,1.5546609]
[1725670644505,6.869951,2241.7,2241.3,0.92760224]
[1725670644708,6.24541,2241.7,2241.4,3.88671533]
[1725670645051,6.24541,2241.7,2241.3,0.92760224]
[1725670645221,6.24541,2241.7,2241.4,3.886846]
[1725670645547,6.24541,2241.7,2241.3,0.92760224]
[1725670645734,6.24541,2241.7,2241.4,3.88680027]
[1725670645902,6.24541,2241.7,2241.3,0.92760224]
[1725670646100,6.2454,2241.7,2241.4,3.8868186]
[1725670646349,6.2454,2241.7,2241.3,0.92760224]
[1725670646532,6.2454,2241.7,2241.4,3.88674951]
[1725670646533,3.74724,2241.7,2241.4,3.88674951]
[1725670646733,3.12252,2241.8,2241.5,4.81435175]
[1725670646934,3.12252,2241.8,2241.6,3.88674951]
[1725670647158,0.12879454,2241.7,2241.5,0.92760224]
[1725670647473,3.12252,2241.8,2241.6,3.88616555]
[1725670647620,3.12252,2241.8,2241.6,0.92760224]
[1725670647823,0.12879454,2241.7,2241.5,0.92760224]
[1725670648054,3.12252,2241.8,2241.6,3.88637966]
[1725670648238,3.12252,2241.8,2241.5,0.92760224]
[1725670648542,0.12879454,2241.7,2241.6,3.88634505]
[1725670648880,3.12252,2241.8,2241.6,1.55453802]
[1725670649023,3.12252,2241.8,2241.4,6.43214224]
[1725670649223,0.12865698,2241.7,2241.5,3.88644417]
[1725670649461,3.12252,2241.8,2241.6,1.55457767]
[1725670649760,3.12252,2241.8,2241.4,6.43214224]
[1725670649979,0.12866949,2241.7,2241.5,3.88642308]
[1725670650265,3.25131949,2241.7,2241.4,0.92760224]
[1725670650429,3.12265,2241.7,2241.5,3.8864874]
[1725670650631,3.12265,2241.7,2241.4,0.92760224]
[1725670650833,3.12265,2241.7,2241.5,3.88652665]
[1725670651071,3.12265,2241.7,2241.4,0.92760224]
[1725670651270,3.12252,2241.8,2241.5,3.88652571]
[1725670651564,3.12252,2241.8,2241.4,6.43213224]
[1725670651766,0.4668852,2242.0,2241.7,3.12256]
[1725670651975,3.12202,2242.2,2241.8,7.00865627]
[1725670652134,3.12202,2242.2,2241.9,3.88618627]
[1725670652472,3.12202,2242.2,2241.8,6.43157224]
[1725670652690,3.12202,2242.2,2241.9,3.88567257]
[1725670652974,2.46684659,2242.3,2241.9,3.88567257]
[1725670652975,0.46684659,2242.3,2242.0,3.88566433]
[1725670653175,0.46684659,2242.3,2241.9,4.04985224]
[1725670653332,0.46684659,2242.3,2242.0,1.55424843]
[1725670653526,3.58863659,2242.3,2241.8,7.70880475]
[1725670653731,3.58863659,2242.3,2241.9,3.8856146]
[1725670654040,0.12849442,2242.2,2242.0,1.55424584]
[1725670654367,3.58863659,2242.3,2241.8,7.70880475]
[1725670654589,3.58863659,2242.3,2241.9,3.88565001]
[1725670654765,0.12849442,2242.2,2242.0,1.55426]
[1725670654961,0.12849442,2242.2,2241.9,3.12233]
[1725670655163,3.58863659,2242.3,2242.0,1.55425214]
[1725670655376,3.58863659,2242.3,2241.8,5.32730475]
[1725670655377,0.12849442,2242.1,2241.8,5.32730475]
[1725670655595,3.58863659,2242.3,2241.9,3.88570968]
[1725670655752,3.58863659,2242.3,2241.8,4.05007224]
[1725670656072,0.12868197,2242.2,2241.9,3.88575703]
[1725670656245,0.12868197,2242.2,2241.8,4.05007224]
[1725670656453,3.58863659,2242.3,2241.9,3.88568738]
[1725670656688,0.12868197,2242.2,2241.9,3.12234]
[1725670657185,3.58863659,2242.3,2241.9,3.12234]
[1725670657391,0.12868197,2242.1,2241.8,7.17249224]
[1725670657548,3.58863659,2242.3,2241.9,3.88570793]
[1725670657755,3.58863659,2242.3,2241.8,5.81548457]
[1725670657954,0.12868197,2242.2,2241.9,7.0080428]
[1725670658189,0.12868197,2242.2,2241.9,3.12231]
[1725670658393,0.46684659,2242.3,2241.9,3.12231]
[1725670658601,0.12868197,2242.1,2241.9,3.12231]
[1725670658895,3.58864659,2242.3,2241.9,3.12231]
[1725670659379,0.12868197,2242.2,2242.0,1.55430064]
[1725670659589,0.12868197,2242.2,2241.9,4.04991224]
[1725670659887,0.12868197,2242.1,2242.0,3.88557882]
[1725670660096,0.12868197,2242.1,2242.0,1.55423153]
[1725670660295,3.58864659,2242.3,2242.0,1.55423153]
[1725670660588,3.58864659,2242.3,2241.9,3.12231]
[1725670660805,0.12868197,2242.2,2242.0,1.55424285]
[1725670660994,0.12868197,2242.2,2241.9,3.12231]
[1725670661154,3.58864659,2242.3,2242.0,3.88560625]
[1725670661355,0.12868197,2242.1,2241.9,4.04991224]
[1725670661660,0.46684659,2242.3,2242.0,3.88553415]
[1725670662000,3.12241,2241.9,2241.7,20.59760224]
[1725670662212,3.12241,2241.9,2241.8,1.5543775]
[1725670662420,3.12241,2241.9,2241.7,19.67]
[1725670662910,3.12221,2242.0,2241.7,19.67]
[1725670663117,3.12221,2242.0,2241.8,1.5543882]
[1725670663280,0.12921965,2241.9,2241.7,20.59760224]
[1725670663465,0.12921965,2241.9,2241.8,3.88591302]
[1725670663970,3.946632,2242.0,2241.8,1.55436521]
[1725670664197,3.12221,2242.0,2241.7,19.67]
[1725670664414,0.12921965,2241.9,2241.8,1.55438816]
[1725670664571,3.12221,2242.0,2241.8,1.55438816]
[1725670664771,3.12221,2242.0,2241.7,19.67]
[1725670665104,0.12921965,2241.9,2241.6,4.05036224]
[1725670665435,0.12921965,2241.9,2241.7,3.88614502]
[1725670665571,3.12221,2242.0,2241.6,4.05036224]
[1725670665771,3.12221,2242.0,2241.7,3.88616966]
[1725670665972,0.12905711,2241.9,2241.8,1.55446786]
[1725670666180,0.12905711,2241.9,2241.6,10.17229975]
[1725670666510,3.12221,2242.0,2241.7,3.88609602]
[1725670666679,3.12221,2242.0,2241.8,1.55442499]
[1725670667007,0.12905711,2241.9,2241.6,6.42716224]
[1725670667181,0.12905711,2241.9,2241.7,3.8861207]
[1725670667505,0.12905711,2241.9,2241.8,1.55444828]
[1725670667677,3.12221,2242.0,2241.8,1.55444828]
[1725670667881,5.12202,2242.2,2241.7,4.05022224]
[1725670668101,0.12905711,2241.9,2241.8,3.88593253]
[1725670668305,3.12208,2242.1,2241.8,3.88593253]
[1725670668472,3.12208,2242.1,2241.7,0.92760224]
[1725670668673,0.12905711,2242.0,2241.8,3.88598845]
[1725670668982,0.12905711,2242.0,2241.9,1.55437333]
[1725670669311,0.12905711,2242.0,2241.9,1.55432536]
[1725670669608,0.12905711,2242.0,2241.7,4.05021224]
[1725670669811,3.12208,2242.1,2241.8,3.88588625]
[1725670670014,3.12208,2242.1,2241.9,1.5543545]
[1725670670219,0.12905711,2242.0,2241.7,4.05021224]
[1725670670393,3.12208,2242.1,2241.8,3.88596571]
[1725670670715,3.12208,2242.1,2241.7,4.05021224]
[1725670670919,3.12208,2242.1,2241.8,3.88591906]
[1725670671099,3.12208,2242.1,2241.7,4.05021224]
[1725670671303,3.12208,2242.1,2241.8,3.88589451]
[1725670671499,3.12208,2242.1,2241.9,1.55437131]
[1725670671706,5.12202,2242.2,2241.7,4.13941941]
[1725670671913,0.12905711,2242.0,2241.8,3.88581775]
[1725670672219,5.12202,2242.2,2241.9,1.55435796]
[1725670672517,0.12905711,2242.1,2241.7,4.13941941]
[1725670672728,0.12905711,2242.1,2241.8,3.88583773]
[1725670672881,0.46684659,2242.3,2242.2,3.12193]
[1725670673080,8.24237,2242.8,2242.3,3.12172]
[1725670673379,0.1290946,2242.7,2242.3,3.12171]
[1725670673519,3.2503546,2242.7,2242.4,3.88481328]
[1725670673692,3.12126,2242.7,2242.2,6.54051224]
[1725670673893,0.1290946,2242.6,2242.3,1.55393899]
[1725670674198,0.1290946,2242.6,2242.2,6.90097751]
[1725670674199,3.12185,2242.3,2242.0,0.92760224]
[1725670674526,3.12185,2242.3,2242.1,1.55413489]
[1725670674527,3.25149962,2242.2,2242.1,1.55413489]
[1725670674730,3.25149962,2242.2,2241.9,0.92760224]
[1725670674887,0.12956962,2242.2,2242.0,3.88548105]
[1725670675089,0.12956962,2242.2,2241.9,0.92760224]
[1725670675319,3.12185,2242.3,2241.8,4.05005224]
[1725670675621,3.12185,2242.3,2241.9,3.8856845]
[1725670675843,0.12935714,2242.2,2242.0,1.5542738]
[1725670676139,3.12185,2242.3,2241.8,4.05005224]
[1725670676285,0.12935714,2242.1,2241.9,3.88568536]
[1725670676486,3.12185,2242.3,2241.8,4.05005224]
[1725670676683,0.12935714,2242.0,2241.9,3.88569012]
[1725670676908,3.12185,2242.3,2241.9,3.88569012]
[1725670677125,0.12935714,2242.0,2241.8,4.05005224]
[1725670677307,3.12215,2242.1,2241.9,1.55427484]
[1725670677528,3.12215,2242.1,2241.8,0.92760224]
[1725670677703,3.12215,2242.1,2241.7,0.92760224]
[1725670677904,3.12215,2242.1,2241.8,3.88591538]
[1725670678120,3.12215,2242.1,2241.7,0.92760224]
[1725670678315,3.12215,2242.1,2241.8,3.885931]
[1725670678495,3.12215,2242.1,2241.7,0.92760224]
[1725670678695,3.12215,2242.1,2241.8,3.88592732]
[1725670679034,3.12215,2242.1,2241.7,0.92760224]
[1725670679192,3.12215,2242.1,2241.8,3.88593943]
[1725670679530,3.12215,2242.1,2241.9,3.88589963]
[1725670679751,3.12215,2242.1,2241.7,0.92760224]
[1725670679889,3.12215,2242.1,2241.8,3.88582951]
[1725670680089,3.12215,2242.1,2241.9,1.5543318]
[1725670680326,3.12215,2242.1,2241.7,0.92760224]
[1725670680517,3.12215,2242.1,2241.8,3.88584843]
[1725670680717,3.12215,2242.1,2241.7,0.92760224]
[1725670680919,3.12215,2242.1,2241.8,3.88586396]
[1725670681122,3.12215,2242.1,2241.7,0.92760224]
[1725670681424,3.12215,2242.1,2241.8,3.88586305]
[1725670681626,3.12215,2242.1,2241.7,0.92760224]
[1725670681832,3.12223,2242.0,2241.8,3.88584295]
[1725670682134,3.12223,2242.0,2241.9,1.55429033]
[1725670682500,3.62479261,2242.0,2241.9,1.55429033]
[1725670682696,3.12235,2241.9,2241.7,0.92760224]
[1725670682901,3.12235,2241.9,2241.6,0.92760224]
[1725670683118,0.50258261,2242.0,2241.7,1.55445831]
[1725670683339,0.50258261,2242.0,2241.5,6.42182224]
[1725670683340,3.62480261,2242.0,2241.5,6.42182224]
[1725670683541,0.12916962,2241.9,2241.6,3.88618841]
[1725670683745,0.12916962,2241.9,2241.7,3.88617977]
[1725670684038,3.12214,2242.1,2241.8,1.55447536]
[1725670684238,0.12879453,2242.0,2241.7,0.92760224]
[1725670684411,0.12879453,2242.0,2241.8,3.88590148]
[1725670684612,0.12879453,2242.0,2241.7,0.92760224]
[1725670684613,3.25102453,2242.0,2241.7,0.92760224]
[1725670684823,3.25102453,2242.0,2241.8,1.55437855]
[1725670685149,3.25102453,2242.0,2241.6,0.92760224]
[1725670685297,3.25102453,2242.0,2241.7,3.88599656]
[1725670685497,3.12236,2241.9,2241.5,0.92760224]
[1725670685756,3.12236,2241.9,2241.6,4.81366312]
[1725670685757,3.12261,2241.8,2241.6,4.81366312]
[1725670685952,3.12261,2241.8,2241.5,0.92760224]
[1725670686111,3.12261,2241.8,2241.6,3.8862477]
[1725670686112,0.12883204,2241.7,2241.6,3.8862477]
[1725670686305,3.12261,2241.8,2241.6,3.8862477]
[1725670686501,3.12261,2241.8,2241.5,0.92760224]
[1725670686706,0.12883204,2241.7,2241.6,3.8862034]
[1725670686943,0.12883204,2241.7,2241.6,1.55448136]
[1725670687143,3.12261,2241.8,2241.6,1.55448136]
[1725670687330,3.12261,2241.8,2241.4,0.92760224]
[1725670687517,3.12261,2241.8,2241.5,3.88635016]
[1725670687717,3.12261,2241.8,2241.6,1.55454006]
[1725670687919,5.12236,2241.9,2241.4,4.05064224]
[1725670688121,5.12236,2241.9,2241.5,4.81386532]
[1725670688328,5.12236,2241.9,2241.6,3.88626308]
[1725670688570,5.12236,2241.9,2241.5,0.92760224]
[1725670688773,8.24478,2241.9,2241.6,3.88622717]
[1725670688973,3.12251,2241.8,2241.4,4.05064224]
[1725670689177,3.2512295,2241.8,2241.5,3.88638205]
[1725670689481,3.2512295,2241.8,2241.4,4.05064224]
[1725670689668,3.2512295,2241.8,2241.5,3.88662122]
[1725670689842,3.2512295,2241.8,2241.6,1.55455503]
[1725670690042,3.12269,2241.7,2241.4,0.92760224]
[1725670690361,0.12868199,2241.6,2241.5,1.55453081]
[1725670690562,0.12868199,2241.6,2241.5,1.55461344]
[1725670690765,3.12269,2241.7,2241.5,1.55461344]
[1725670690766,3.12269,2241.7,2241.5,3.8865371]
[1725670691068,4.11226581,2241.8,2241.6,1.55454161]
[1725670691282,0.12868199,2241.7,2241.4,0.92760224]
[1725670691572,7.23486581,2241.8,2241.5,1.55462821]
[1725670691741,4.11226581,2241.8,2241.4,0.92760224]
[1725670691946,0.12868199,2241.7,2241.5,1.5546561]
[1725670692274,7.23484581,2241.8,2241.4,0.92760224]
[1725670692599,0.12868199,2241.7,2241.5,1.55463737]
[1725670692763,0.12868199,2241.7,2241.4,0.92760224]
[1725670693083,0.12868199,2241.6,2241.5,1.55464718]
[1725670693260,3.12263,2241.7,2241.5,1.55464718]
[1725670693460,3.12263,2241.7,2241.4,0.92760224]
[1725670693461,2.0,2241.6,2241.4,0.92760224]
[1725670693655,3.12297,2241.5,2241.2,0.92760224]
[1725670693859,3.12297,2241.5,2241.3,21.22475596]
[1725670694080,3.25173199,2241.4,2241.1,20.59760224]
[1725670694349,3.12305,2241.4,2241.2,1.55482781]
[1725670694685,5.12288,2241.6,2241.0,0.92760224]
[1725670694686,3.12292,2241.5,2241.0,0.92760224]
[1725670694987,0.12838186,2241.4,2241.1,3.88713645]
[1725670695195,0.12838186,2241.4,2241.2,1.55485458]
[1725670695398,3.12292,2241.5,2241.0,3.54909175]
[1725670695565,3.12292,2241.5,2241.1,3.88713513]
[1725670695895,0.12838186,2241.4,2241.2,1.55484133]
[1725670696119,0.12838186,2241.4,2241.0,3.54909175]
[1725670696421,3.12292,2241.5,2241.1,3.88712201]
[1725670696718,3.12292,2241.5,2241.0,3.54909175]
[1725670696719,0.12838186,2241.4,2241.0,0.92760224]
[1725670696889,5.12321,2241.3,2240.9,20.59760224]
[1725670697085,5.12321,2241.3,2241.0,3.88733185]
[1725670697291,0.12838186,2241.2,2240.9,20.59760224]
[1725670697517,5.12321,2241.3,2241.0,1.55495069]
[1725670697721,0.12838186,2241.1,2240.9,19.67]
[1725670698017,5.12321,2241.3,2241.0,3.88733179]
[1725670698018,2.0,2241.3,2241.0,3.88733179]
[1725670698188,2.0,2241.3,2240.9,20.59760224]
[1725670698518,0.12838186,2241.2,2241.0,3.88729421]
[1725670698816,5.12324,2241.3,2240.9,19.67]
[1725670699043,5.12324,2241.3,2241.0,1.55495179]
[1725670699188,0.12838186,2241.2,2240.9,19.67]
[1725670699388,5.12324,2241.3,2241.0,1.55493973]
[1725670699695,3.25172186,2241.2,2240.9,19.67]
[1725670700099,3.12334,2241.2,2240.9,19.67]
[1725670701139,3.12346,2241.1,2240.9,19.67]
[1725670701424,3.12346,2241.1,2240.5,0.92760224]
[1725670701425,3.25135889,2241.0,2240.5,0.92760224]
[1725670701626,3.12369,2241.0,2240.6,1.55516019]
[1725670701800,3.12369,2241.0,2240.5,0.92760224]
[1725670702000,3.12369,2241.0,2240.6,1.55517225]
[1725670702185,3.12369,2241.0,2240.5,0.92760224]
[1725670702386,3.12369,2241.0,2240.6,3.88786978]
[1725670702708,3.12369,2241.0,2240.4,22.99670224]
[1725670702900,3.12369,2241.0,2240.5,3.88790278]
[1725670703094,3.12369,2241.0,2240.4,22.99670224]
[1725670703315,3.12369,2241.0,2240.5,3.88790487]
[1725670703527,3.12376,2240.9,2240.4,22.99670224]
[1725670703702,3.12376,2240.9,2240.5,3.88789078]
[1725670703913,0.12766889,2240.8,2240.4,22.99670224]
[1725670704245,3.12376,2240.9,2240.5,1.55516298]
[1725670704543,0.12766889,2240.8,2240.7,2.4278]
[1725670704843,2.46698455,2241.3,2240.7,6.31532372]
[1725670704844,5.59017455,2241.3,2240.7,6.31532372]
[1725670705146,3.12333,2241.2,2240.7,2.51704447]
[1725670706846,3.12333,2241.2,2240.7,22.18704447]
[1725670707361,3.99467846,2241.2,2240.7,22.18704447]
[1725670707561,3.12357,2241.1,2240.7,19.67]
[1725670707769,3.12333,2241.2,2240.7,19.67]
[1725670708058,0.12245236,2241.1,2240.7,19.67]
[1725670708278,3.12353,2241.1,2240.7,19.67]
[1725670709421,3.12333,2241.2,2240.7,19.67]
[1725670709623,0.12245236,2241.1,2240.7,19.67]
[1725670709823,3.12333,2241.2,2240.7,22.488072]
[1725670710061,5.59023455,2241.3,2240.8,0.08924916]
[1725670710223,0.12245236,2241.2,2240.8,2.35154916]
[1725670710425,5.59023455,2241.3,2240.8,5.47541916]
[1725670710656,0.12245236,2241.2,2240.8,5.47541916]
[1725670710853,5.59023455,2241.3,2240.8,7.667159]
[1725670711048,0.12245236,2241.2,2240.8,7.667159]
[1725670711327,5.59023455,2241.3,2240.8,7.667159]
[1725670711839,0.12245236,2241.2,2240.8,7.57790984]
[1725670712049,5.59023455,2241.3,2240.8,7.57790984]
[1725670712254,0.12245236,2241.2,2240.8,7.57790984]
[1725670712428,5.59023455,2241.3,2240.8,7.57790984]
[1725670712771,5.59023455,2241.3,2240.8,5.38617]
[1725670712772,0.12245236,2241.2,2240.8,5.38617]
[1725670713124,3.12335,2241.2,2240.8,2.2623]
[1725670717084,6.24706,2241.1,2240.6,22.79415]
[1725670717965,3.1235,2241.1,2240.6,22.79415]
[1725670718172,3.1235,2241.1,2240.6,19.67]
[1725670718518,3.12367,2241.0,2240.6,19.67]
[1725670718687,3.12379,2240.9,2240.6,19.67]
[1725670718846,3.12379,2240.9,2240.5,5.38651]
[1725670719793,5.12362,2241.0,2240.5,9.17429178]
[1725670719946,5.12362,2241.0,2240.5,12.29852178]
[1725670720283,0.12270262,2240.9,2240.5,9.17429178]
[1725670720587,8.2473,2241.0,2240.5,9.17429178]
[1725670720741,5.12362,2241.0,2240.5,9.17429178]
[1725670720941,0.12270262,2240.9,2240.5,9.17429178]
[1725670721191,3.24650262,2240.9,2240.5,9.17429178]
[1725670721386,3.1238,2240.9,2240.5,9.17429178]
[1725670721688,3.1241,2240.7,2240.4,19.67]
[1725670721989,3.12422,2240.6,2240.4,19.67]
[1725670722401,0.12261503,2240.5,2240.4,19.67]
[1725670722608,3.1247,2240.3,2240.0,19.67]
[1725670722760,0.12261503,2240.5,2240.0,19.67]
[1725670722761,3.12486,2240.1,2240.0,19.67]
[1725670723406,3.24731234,2240.1,2240.0,19.67]
[1725670723696,3.12486,2240.1,2240.0,19.67]
[1725670723886,3.24696187,2240.1,2239.7,2.3182]
[1725670724085,3.12502,2240.0,2239.7,2.3182]
[1725670724474,6.24985,2240.1,2239.7,2.3182]
[1725670725085,3.12486,2240.1,2239.7,2.3182]
[1725670725287,3.12486,2240.1,2239.7,5.14214]
[1725670725793,6.24979,2240.1,2239.7,5.14214]
[1725670726041,3.12486,2240.1,2239.7,5.14214]
[1725670727307,0.46702593,2240.5,2240.0,3.12488]
[1725670727466,0.46702593,2240.5,2240.1,3.12139736]
[1725670728370,0.46702593,2240.5,2240.1,6.24621736]
[1725670730500,3.12368,2241.0,2240.5,5.59664]
[1725670730501,5.12368,2241.0,2240.5,5.59664]
[1725670730670,3.24049934,2240.9,2240.5,5.68589642]
[1725670730882,3.12375,2240.9,2240.5,5.68589642]
[1725670731571,3.12375,2240.9,2240.5,2.56165642]
[1725670731772,6.24758,2240.9,2240.5,2.56165642]
[1725670732308,3.12375,2240.9,2240.5,2.56165642]
[1725670732799,6.24756,2240.9,2240.5,2.56165642]
[1725670733002,3.12375,2240.9,2240.5,2.56165642]
[1725670733167,0.11713796,2240.8,2240.5,2.56165642]
[1725670733499,3.12375,2240.9,2240.5,2.56165642]
[1725670734168,6.24761,2240.9,2240.5,2.56165642]
[1725670734365,3.12375,2240.9,2240.5,2.56165642]
[1725670734876,3.12389,2240.8,2240.5,2.56165642]
[1725670737092,3.12389,2240.8,2240.5,0.08925642]
[1725670738686,3.12375,2240.9,2240.4,3.21368653]
[1725670738890,3.12375,2240.9,2240.4,4.83983037]
[1725670738891,0.11713796,2240.8,2240.4,4.83983037]
[1725670739075,3.12375,2240.9,2240.4,4.83983037]
[1725670739275,0.11787766,2240.8,2240.4,4.83983037]
[1725670739512,3.12375,2240.9,2240.4,4.83983037]
[1725670739725,0.11787766,2240.8,2240.4,4.83983037]
[1725670739880,0.11787766,2240.8,2240.4,24.50983037]
[1725670740083,6.24756,2240.9,2240.4,24.50983037]
[1725670740321,3.12375,2240.9,2240.4,24.50983037]
[1725670741018,0.11787766,2240.8,2240.4,24.50983037]
[1725670741201,3.12375,2240.9,2240.4,24.50983037]
[1725670742102,3.12394,2240.8,2240.4,21.38540037]
[1725670742322,3.12405,2240.7,2240.4,19.67]
[1725670742675,3.12402,2240.7,2240.4,19.67]
[1725670744382,3.12424,2240.6,2240.4,19.67]
[1725670744807,0.11782752,2240.5,2240.4,19.67]
[1725670745127,0.11782752,2240.5,2240.3,19.67]
[1725670745626,3.12424,2240.6,2240.3,19.67]
[1725670747116,3.12431,2240.5,2240.3,19.67]
[1725670747324,0.824826,2240.6,2240.3,19.67]
[1725670747325,5.12444,2240.4,2240.3,19.67]
[1725670747482,5.12444,2240.4,2240.1,19.67]
[1725670747824,0.11768963,2240.3,2240.0,5.52945]
[1725670748021,0.11768963,2240.3,2240.1,3.88876691]
[1725670748189,2.0,2240.4,2240.0,6.45705224]
[1725670748395,0.11752665,2240.2,2240.1,3.88875342]
[1725670748684,2.0,2240.4,2240.0,6.45705224]
[1725670748829,5.12445,2240.4,2240.1,3.88870938]
[1725670749000,5.12445,2240.4,2240.2,1.55548693]
[1725670749204,0.11752665,2240.3,2240.1,3.12482]
[1725670749408,0.11752665,2240.3,2240.2,1.55544773]
[1725670749800,0.11752665,2240.3,2240.2,3.95994773]
[1725670750002,0.11752665,2240.3,2240.2,13.55939683]